Cogmind - Beta 12 @@@ ROGUE MODE // 2024.01.03 @ 23:11:43 Player: Krieg Result: Core destroyed Performance ------------- Evolutions (9) 4500 Regions Visited (17) 3400 Robots Destroyed (172) 860 Value Destroyed (5812) 5812 Prototype IDs (20) 400 Alien Tech Used (0) 0 Bonus (568) 568 TOTAL SCORE: 15540 Bonus ------- High Alert Combat Kills 145 Follower Combat Kills 159 Entered DSFs 500 Met Warlord at Base 500 MAIN.C Attacked Warlord 500 Warlord Defense Kills 732 Met Warlord at Research 2000 Friendly Fire -3968 Cogmind --------- Core Integrity 0/1600 Matter 187/300 Energy 100/100 System Corruption 54% Temperature Cool (0) Movement Core (50) Location -1/Access Parts ------- > --- POWER (5) -------- (None) > --- PROPULSION (10) -- (None) > --- UTILITY (5) ------ (None) > --- WEAPON (5) ------- (None) > --- INVENTORY (5) ---- Improved Remote Force Field Drone Bay (2/2) Peak State ------------ > --- POWER ------------ Quantum-Antimatter Reactor > --- PROPULSION ------- Hovering Antigrav-FC Exoskeleton > --- UTILITY ---------- Armored Scrap Engine Improved Heat Sink Huge Storage Unit Experimental Sensor Array > --- WEAPON ----------- KE Penetrator Construct/G Hpw. Charged Gamma Construct/G Hpw. Electro Disruptor Construct/C Hpw. EM Proton Construct/G > --- INVENTORY -------- Advanced Terrain Scan Processor Improved Remote Force Field Improved Remote Force Field System Shield Tractor Beam Drone Bay Mini Grenade Launcher Phasing Sabre [Rating: 147] Favorites ----------- Power Constructs Engine Heavy Ion Engine Power Core Light Nuclear Core Reactor Constructs Propulsion Constructs Treads Light Treads Leg Aluminum Leg Wheel Compact Wheel Hover Unit Constructs Utility Armored Scrap Engine Device Armored Scrap Engine Storage Huge Storage Unit Processor Advanced Targeting Computer Hackware System Shield Protection Medium Armor Plating Weapon Constructs Energy Gun Constructs Energy Cannon Constructs Ballistic Gun Assault Rifle Launcher Mini Grenade Launcher Impact Weapon Heavy Hammer Slashing Weapon Phasing Sabre Build | -11 -10 -10 -9 -9 -9 -7 -6 -5 -5 -4 -4 -4 -4 -3 -3 -2 -1 ------- Run | Jun Mat Min Mat Sto Rec Fac Fac Fac DSF Fac Upp Upp War Pro Res Res Acc Slots Evolved 18 | . . . 2 . . 4 2 2 . 2 . . . . 2 2 2 Power 4 | . . . . . . 1 1 . . . . . . . 1 1 . Propulsion 8 | . . . 1 . . 2 . 1 . 2 . . . . . . 2 Utility 3 | . . . 1 . . 1 . . . . . . . . 1 . . Weapon 3 | . . . . . . . 1 1 . . . . . . . 1 . Parts Attached 54 | 6 1 5 2 25 2 1 2 . . . 2 . . . . . 8 Power 7 | 1 . 1 . 5 . . . . . . . . . . . . . Engine 6 | 1 . . . 5 . . . . . . . . . . . . . Core 1 | . . 1 . . . . . . . . . . . . . . . Reactor . | . . . . . . . . . . . . . . . . . . Propulsion 11 | 2 . 1 . 8 . . . . . . . . . . . . . Treads 4 | . . . . 4 . . . . . . . . . . . . . Leg 5 | 2 . 1 . 2 . . . . . . . . . . . . . Wheel 2 | . . . . 2 . . . . . . . . . . . . . Hover . | . . . . . . . . . . . . . . . . . . Flight . | . . . . . . . . . . . . . . . . . . Utility 18 | 1 1 1 1 4 1 1 2 . . . . . . . . . 6 Device 8 | . . . 1 . 1 1 1 . . . . . . . . . 4 Storage 3 | 1 . . . 1 . . 1 . . . . . . . . . . Processor 4 | . 1 1 . 1 . . . . . . . . . . . . 1 Hackware 1 | . . . . . . . . . . . . . . . . . 1 Protection 2 | . . . . 2 . . . . . . . . . . . . . Artifact . | . . . . . . . . . . . . . . . . . . Weapon 18 | 2 . 2 1 8 1 . . . . . 2 . . . . . 2 Energy Gun 5 | 1 . . . 4 . . . . . . . . . . . . . Energy Cannon 3 | . . 1 . 1 1 . . . . . . . . . . . . Ballistic Gun 4 | 1 . 1 . 2 . . . . . . . . . . . . . Ballistic Cannon . | . . . . . . . . . . . . . . . . . . Launcher 1 | . . . . . . . . . . . . . . . . . 1 Special Weapon . | . . . . . . . . . . . . . . . . . . Impact Weapon 3 | . . . 1 1 . . . . . . 1 . . . . . . Slashing Weapon 2 | . . . . . . . . . . . 1 . . . . . 1 Piercing Weapon . | . . . . . . . . . . . . . . . . . . Special Melee Weapon . | . . . . . . . . . . . . . . . . . . Unidentified Prototypes 7 | . . . . 6 . . . . . . . . . . . . 1 Corrupted Parts 2 | . . . . 2 . . . . . . . . . . . . . System Corruption 7 | . . . . 7 . . . . . . . . . . . . . Parts Lost 36 | . . . . 3 . 4 5 . . 3 . 1 . 2 2 1 15 Power 8 | . . . . . . 2 2 . . 1 . . . . . . 3 Propulsion 4 | . . . . 2 . . . . . . . . . . . 1 1 Utility 7 | . . . . 1 . 1 . . . . . . . . . . 5 Weapon 17 | . . . . . . 1 3 . . 2 . 1 . 2 2 . 6 Highest Loss Streak 7 | . . . . 1 . 1 2 . . 3 . 1 . 1 1 1 7 To Critical Strikes 2 | . . . . . . . . . . . . . . . . 1 1 Average Slot Usage (%) 53 | . 93 100 88 96 72 48 42 . 46 39 35 34 32 33 29 27 19 Engine 4 | . 14 3 . 9 10 6 1 . . . 1 . . . . . . Core 1 | . . 10 11 1 . . . . . . 1 . . . . . . Reactor 1 | . . . . . . . 4 . 5 5 1 4 5 4 4 3 2 Treads 2 | . . . . 9 4 2 . . . . 1 . . . . . 1 Leg 6 | . 28 28 22 10 9 2 2 . . . 1 . . 1 . . . Wheel 2 | . . . . 10 3 2 . . 2 5 . 3 5 1 . . . Device 6 | . . . 11 3 10 10 7 . 11 9 5 5 5 5 4 4 3 Storage 7 | . 14 14 11 11 11 7 6 . 5 5 5 5 5 5 4 4 2 Processor 2 | . 8 14 11 15 . . . . . . . . . . . . . Energy Gun 3 | . 14 3 . 3 3 7 . . . 3 4 . . 5 3 4 2 Energy Cannon 3 | . . 5 11 2 4 . . . . . 5 5 7 4 4 4 1 Ballistic Gun 4 | . 14 18 3 4 6 . 9 . 12 5 . . . 1 . 1 1 Ballistic Cannon 1 | . . . . . . 5 4 . 3 4 . 2 . . 2 . . Impact Weapon 2 | . . . 7 10 6 . . . . . . . . . . . . Naked Turns 163 | . . . . . . . . . . . . . . . . . 163 Heaviest Build 173 | 14 14 18 20 31 30 28 111 102 118 118 114 114 112 141 136 146 173 Greatest Support 329 | 20 20 30 30 30 39 115 130 130 138 138 217 217 160 234 234 234 329 Greatest Overweight (x) 9 | 3 . . . 1 9 . . . . . . . . . . . . Average Overweight (x) . | . . . . . . . . . . . . . . . . . . Largest Inventory Capacity 25 | 8 8 8 8 10 10 10 25 25 25 25 25 25 25 25 25 25 25 Average Capacity 16 | 7 8 8 8 9 10 10 23 25 25 25 25 25 25 25 25 25 16 Most Carried 10 | 4 7 8 8 10 10 9 9 8 8 8 9 9 10 10 10 10 10 Average Carried 7 | 3 4 7 7 8 6 8 8 8 8 8 7 9 9 10 10 10 4 Final Capacity 25 | 8 8 8 8 10 10 10 25 25 25 25 25 25 25 25 25 25 5 Final Carried 10 | 4 7 8 8 10 7 9 8 8 8 8 9 9 10 10 10 10 2 Scrap Engine Consumption 415 | . . . . . 89 57 42 . 14 12 19 27 52 26 21 44 12 Constructs Created 19 | . . . . . 4 2 4 . 1 . 1 . 1 3 . 3 . Constructs Modified 114 | . . . . . 15 22 5 . 5 1 13 13 1 23 2 6 8 Class Distribution -------------------- 63% | Construct 22% | Mutant 7% | Commander-Mutant 5% | Generator-Construct Dominant Class ---------------- Mutant | -10/Materials Mutant | -10/Mines Mutant | -9/Materials Mutant | -9/Storage Construct | -9/Recycling Construct | -7/Factory Construct | -6/Factory Construct | -5/Factory Construct | -5/DSF Construct | -4/Factory Construct | -4/Upper Caves Construct | -4/Upper Caves Construct | -4/Warlord Construct | -3/Proximity Caves Generator-Construct | -3/Research Construct | -2/Research Mutant | -1/Access Resources | -11 -10 -10 -9 -9 -9 -7 -6 -5 -5 -4 -4 -4 -4 -3 -3 -2 -1 ----------- Run | Jun Mat Min Mat Sto Rec Fac Fac Fac DSF Fac Upp Upp War Pro Res Res Acc Matter Collected 2447 | 219 . 197 20 338 259 141 582 . . 72 67 46 45 135 34 132 160 Remotely . | . . . . . . . . . . . . . . . . . . Salvage Created 9861 | . . 184 . 1338 2243 853 834 . 70 483 1170 845 368 906 281 157 129 Parts 376 | . . 4 . 80 77 41 36 . 8 24 16 27 8 33 8 12 2 Haulers Intercepted 9 | . . . . 5 2 1 . . . . . . . . . . 1 Recyclers Shooed 9 | . . . . 1 8 . . . . . . . . . . . . Parts Field Recycled . | . . . . . . . . . . . . . . . . . . Retrieved Matter . | . . . . . . . . . . . . . . . . . . Parts Self-Destructed 43 | . . . . . . . . . . . . 20 . 23 . . . Prevented 4 | . . . . . . . . . . . . 4 . . . . . Kills | -11 -10 -10 -9 -9 -9 -7 -6 -5 -5 -4 -4 -4 -4 -3 -3 -2 -1 ------- Run | Jun Mat Min Mat Sto Rec Fac Fac Fac DSF Fac Upp Upp War Pro Res Res Acc Combat Hostiles Destroyed 117 | . . 6 . 17 13 16 16 . 1 10 . 13 6 11 5 2 1 Melee 9 | . . . . 1 . . . . . 1 . 7 . . . . . Guns 59 | . . 5 . 7 13 4 13 . 1 8 . . . 5 2 1 . Cannons 45 | . . 1 . 8 . 11 3 . . 1 . 6 6 6 2 1 . AOE 1 | . . . . 1 . . . . . . . . . . . . . Classes Destroyed 21 | . . 4 . 7 3 2 . . 1 . 1 1 1 1 . . . Worker 5 | . . 1 . 1 . . 2 . . . . . . . . 1 . Builder 6 | . . 1 . . 3 1 . . . . . . . . . . 1 Hauler 9 | . . . . 5 2 1 . . . . . . . . . . 1 Recycler 21 | . . 1 . 3 13 1 1 . . 1 . . . . 1 . . Operator 2 | . . . . 1 . . . . . 1 . . . . . . . Drone 2 | . . . . . . . . . . . . . . 2 . . . Watcher 4 | . . . . 1 . 2 1 . . . . . . . . . . Swarmer 25 | . . . . 1 . 2 3 . . 8 . 6 . . 5 . . Saboteur 1 | . . . . . . . . . . . . . 1 . . . . Grunt 39 | . . . . 8 7 10 9 . . . . 1 4 . . . . Brawler 2 | . . . . 1 1 . . . . . . . . . . . . Duelist 2 | . . . . . . 1 1 . . . . . . . . . . Protector 3 | . . . . . 3 . . . . . . . . . . . . Sentry 19 | . . . . 7 5 2 1 . . 1 . 2 . 1 . . . Demolisher 1 | . . . . . 1 . . . . . . . . . . . . Specialist 2 | . . . . . . . . . 1 . . . 1 . . . . Hunter 13 | . . . . . 2 . 2 . . . . 3 . 6 . . . Programmer 6 | . . . . . . 1 . . . 1 . . . 1 . 2 1 Behemoth 2 | . . . . . . . . . . . . 1 . 1 . . . Decomposer 8 | . . . . . . . . . . . 4 4 . . . . . Packrat 6 | . . . . . . . . . . . 6 . . . . . . Assembled 6 | . . 6 . . . . . . . . . . . . . . . Thug 3 | . . . . . . . . . . . 2 . 1 . . . . Savage 1 | . . . . . . . . . . . 1 . . . . . . Butcher 1 | . . . . . . . . . . . 1 . . . . . . Guerrilla 1 | . . . . . . . . . . . 1 . . . . . . Mutant 1 | . . . . . . . . . . . 1 . . . . . . Commander 1 | . . . . . . . . . . . 1 . . . . . . Best Kill Streak 11 | . . 2 . 6 4 5 4 . 1 11 . 3 3 3 3 2 1 Combat Bots Only 7 | . . 2 . 5 4 4 4 . 1 7 . 3 3 3 3 1 1 Max Kills in Single Turn 2 | . . 1 . 1 1 1 2 . 1 2 1 1 2 1 1 1 1 Gunslinging . | . . . . . . . . . . . . . . . . . . Exploded 1 | . . . . 1 . . . . . . . . . . . . . Melee 1 | . . . . 1 . . . . . 1 . 1 . . . . . Uniques/NPCs Destroyed . | . . . . . . . . . . . . . . . . . . Combat | -11 -10 -10 -9 -9 -9 -7 -6 -5 -5 -4 -4 -4 -4 -3 -3 -2 -1 -------- Run | Jun Mat Min Mat Sto Rec Fac Fac Fac DSF Fac Upp Upp War Pro Res Res Acc Damage Taken 24014 | . 15 302 29 763 203 1736 2400 . 143 1553 . 3374 486 3070 2661 1803 5476 Core 3220 | . . 31 . 151 16 363 228 . . 165 . 223 71 135 67 170 1600 Absorbed by Shields 55 | . . . . . . . . . . . . . . . . . 55 Regen/Repaired (Parts) 10227 | . . . . . 174 629 869 . 699 26 279 1417 575 3205 497 332 1525 Core Remaining (%) 77 | 100 . 87 . . 58 48 73 . 100 . . . . 48 94 88 . Volleys Fired 568 | . . 46 2 75 87 76 92 . 2 24 6 21 15 71 27 16 8 Largest 4 | . . 1 1 1 2 2 3 . 3 3 2 1 2 3 3 4 3 Hottest 234 | . . 63 63 63 134 121 137 . 97 97 234 160 113 145 156 231 170 Shots Fired 902 | . . 46 2 75 146 146 147 . 6 47 12 21 30 123 41 44 16 Gun 599 | . . 32 . 41 141 86 115 . 4 36 4 . . 80 27 25 8 Cannon 301 | . . 14 2 34 5 60 32 . 2 11 8 21 30 43 14 19 6 Launcher 2 | . . . . . . . . . . . . . . . . . 2 Special . | . . . . . . . . . . . . . . . . . . Kinetic 376 | . . 32 . 6 25 59 122 . 4 12 . 17 . 70 14 9 6 Thermal 276 | . . . . . 121 87 25 . 2 11 10 4 . . . 16 . Explosive 2 | . . . . . . . . . . . . . . . . . 2 Electromagnetic 175 | . . 14 2 69 . . . . . 24 2 . . 10 27 19 8 Entropic 73 | . . . . . . . . . . . . . 30 43 . . . Robot Hit Streak 24 | . . 6 1 24 14 17 16 . 4 12 13 6 9 11 4 6 5 Robot Miss Streak 9 | . . 3 1 3 4 5 6 . 1 4 1 1 3 9 8 3 2 Penetration Max 1 | . . . . . . . . . . . . 1 . . . 1 1 Secondary Targets . | . . . . . . . . . . . . . . . . . . Shots Hit Robots 702 | . . 28 1 65 131 118 90 . 4 25 44 49 20 75 17 24 11 Core Hits 304 | . . 12 . 42 46 59 41 . 2 18 12 19 9 24 9 7 4 Critical Kills 6 | . . . . . 1 . . . . . . 1 . 4 . . . Critical Parts Destroyed 14 | . . 1 . . 4 . . . . 1 1 1 . 6 . . . Critical Strikes 33 | . . 2 . 1 5 1 5 . . 1 1 7 . 10 . . . Burn 1 | . . . . . . 1 . . . . . . . . . . . Destroy 16 | . . 1 . . 2 . . . . 1 . 2 . 10 . . . Blast 5 | . . . . . . . 5 . . . . . . . . . . Corrupt 2 | . . 1 . 1 . . . . . . . . . . . . . Smash 4 | . . . . . 3 . . . . . 1 . . . . . . Sever 5 | . . . . . . . . . . . . 5 . . . . . Melee Attacks 123 | . . . . 9 22 . . . . . 34 49 . . . . 9 Impact 51 | . . . . 9 22 . . . . . 20 . . . . . . Slashing 72 | . . . . . . . . . . . 14 49 . . . . 9 Piercing . | . . . . . . . . . . . . . . . . . . Sneak Attacks 52 | . . . . 2 17 . . . . . 28 4 . . . . 1 Combat Hostiles . | . . . . . . . . . . . . . . . . . . Follow-up Attacks . | . . . . . . . . . . . . . . . . . . Damage Inflicted 22806 | . . 489 20 1786 3322 1941 2265 . 92 721 2950 2593 1758 2946 538 827 558 Guns 7752 | . . 217 . 638 1608 955 1673 . 64 490 98 . . 1121 349 374 165 Cannons 8277 | . . 272 20 721 128 986 544 . 28 196 178 865 1758 1825 189 453 114 Explosions 261 | . . . . 213 . . 48 . . . . . . . . . . Melee 6313 | . . . . 214 1586 . . . . . 2674 1728 . . . . 111 Ramming 203 | . . . . . . . . . . 35 . . . . . . 168 Kinetic 5684 | . . 217 . 58 242 982 1803 . 64 131 . 793 . 909 189 145 151 Thermal 4004 | . . . . 176 1494 959 414 . 28 196 235 72 . . . 430 . Explosive 37 | . . . . 37 . . . . . . . . . . . . . Electromagnetic 2982 | . . 272 20 1301 . . 48 . . 359 41 . . 212 349 252 128 Impact 3310 | . . . . 214 1586 . . . . . 1510 . . . . . . Slashing 3003 | . . . . . . . . . . . 1164 1728 . . . . 111 Piercing . | . . . . . . . . . . . . . . . . . . Entropic 3583 | . . . . . . . . . . . . . 1758 1825 . . . Highest Corruption 54 | . . . . 7 7 . . . 1 1 1 1 1 . 10 3 54 Average Corruption 6 | . . . . 6 7 . . . 1 1 1 1 1 . 4 1 20 Corruption Purged . | . . . . . . . . . . . . . . . . . . Corruption Blocked 4 | . . . . . . . . . . . . . . . . 4 . Effects 153 | . . . . 30 63 . . . . 1 12 10 . . 3 3 31 Message Errors 39 | . . . . 3 18 . . . . . 2 6 . . . 1 9 Matter Fused 42 | . . . . 12 14 . . . . . 1 3 . . 1 1 10 Heat Flow Errors 14 | . . . . 2 7 . . . . . 3 . . . . . 2 Energy Discharges 23 | . . . . 5 8 . . . . . 3 1 . . 2 . 4 Parts Rejected 1 | . . . . . . . . . . 1 . . . . . . . Data Loss (minor) 16 | . . . . 5 6 . . . . . 1 . . . . 1 3 Data Loss (major) 11 | . . . . 2 5 . . . . . 2 . . . . . 2 Alerts 3 | . . . . 1 2 . . . . . . . . . . . . Misdirections 1 | . . . . . . . . . . . . . . . . . 1 Weapon Failures 3 | . . . . . 3 . . . . . . . . . . . . Overload Shots . | . . . . . . . . . . . . . . . . . . Overflow Damage 1726 | . . . . 26 389 6 . . . . 763 382 89 . . . 71 Projectiles 175 | . . . . 16 3 6 . . . . 36 25 89 . . . . Explosions 10 | . . . . 10 . . . . . . . . . . . . . Melee 1541 | . . . . . 386 . . . . . 727 357 . . . . 71 Knockbacks 45 | . . . . 1 5 25 5 . . . 6 . . . 2 1 . Impact 11 | . . . . 1 5 . . . . . 5 . . . . . . Kinetic 29 | . . . . . . 22 4 . . . . . . . 2 1 . Secondary 5 | . . . . . . 3 1 . . . 1 . . . . . . Self-Inflicted Damage 426 | . . . . 142 . . 15 . . 17 . . . . . . 252 Shots 6 | . . . . 3 . . 1 . . . . . . . . . 2 Rammed 1 | . . . . . . . . . . 1 . . . . . . . Targets Rammed 1 | . . . . . . . . . . 1 . . . . . . . Kicked . | . . . . . . . . . . . . . . . . . . Crushed . | . . . . . . . . . . . . . . . . . . Highest Temperature 530 | . . 78 29 253 342 254 418 . . 67 456 432 216 323 365 514 530 Average Temperature 104 | . . 35 15 44 104 100 160 . . 33 105 33 36 107 125 147 184 Received Heat Transfer 2659 | . . . 9 213 72 795 561 . . 236 . 165 127 108 265 108 . Effects 51 | . . . . 3 2 . 2 . . . 6 1 . 2 2 4 29 Shutdowns 11 | . . . . . . . . . . . 1 . . . . 1 9 Energy Bleed 12 | . . . . . 2 . 1 . . . 5 . . 2 . . 2 Interference 11 | . . . . 3 . . 1 . . . . 1 . . 1 2 3 Matter Decay 2 | . . . . . . . . . . . . . . . . . 2 Short Circuit 1 | . . . . . . . . . . . . . . . . . 1 Damage (minor) 7 | . . . . . . . . . . . . . . . 1 1 5 Damage (major) 7 | . . . . . . . . . . . . . . . . . 7 Siege Activations . | . . . . . . . . . . . . . . . . . . Robots Corrupted 3 | . . 1 . . . . . . . . 1 . . . 1 . . Combat Hostiles 1 | . . . . . . . . . . . . . . . 1 . . Parts Fried 35 | . . 2 . 8 10 . . . . . 9 . . 1 4 . 1 Impact Corruptions 24 | . . . . . 15 . . . . . 9 . . . . . . Robots Melted 1 | . . . . . . 1 . . . . . . . . . . . Combat Hostiles 1 | . . . . . . 1 . . . . . . . . . . . Parts Melted 5 | . . . . . 1 3 . . . 1 . . . . . . . Heat Transferred 6535 | . . . . 250 3439 2069 . . 37 259 111 . . . . 370 . Parts Sabotaged . | . . . . . . . . . . . . . . . . . . Parts Stolen . | . . . . . . . . . . . . . . . . . . Parts Stripped . | . . . . . . . . . . . . . . . . . . Power Chain Reactions 3 | . . . . 3 . . . . . . . . . . . . . Missiles Intercepted . | . . . . . . . . . . . . . . . . . . Alert | -11 -10 -10 -9 -9 -9 -7 -6 -5 -5 -4 -4 -4 -4 -3 -3 -2 -1 ------- Run | Jun Mat Min Mat Sto Rec Fac Fac Fac DSF Fac Upp Upp War Pro Res Res Acc Peak Influence 1067 | . . 15 113 450 230 224 295 83 108 329 . . . . 1067 575 286 Initial 753 | . . . 5 . 112 77 54 78 58 56 . . . . 753 439 242 Average 174 | . . 1 63 277 89 107 173 79 61 114 . . . . 896 474 140 Maximum Alert Level 3 | . . . . 2 1 1 1 . . 1 . . . . 3 2 1 Low Security (%) 68 | 100 100 100 100 21 94 87 62 100 100 76 . . . . . . 62 Level 1 21 | . . . . 73 5 12 37 . . 23 . . . . . 3 37 Level 2 5 | . . . . 4 . . . . . . . . . . . 96 . Level 3 4 | . . . . . . . . . . . . . . . 100 . . Level 4 . | . . . . . . . . . . . . . . . . . . Level 5 . | . . . . . . . . . . . . . . . . . . High Security . | . . . . . . . . . . . . . . . . . . Max Security . | . . . . . . . . . . . . . . . . . . Squads Dispatched 20 | . 1 . . 2 . 2 7 . 1 2 . . . . 1 . 4 Investigation 1 | . . . . . . . . . . 1 . . . . . . . Extermination 6 | . . . . . . 1 1 . . 1 . . . . 1 . 2 Reinforcement 10 | . 1 . . 2 . 1 3 . 1 . . . . . . . 2 Assault . | . . . . . . . . . . . . . . . . . . Garrison 3 | . . . . . . . 3 . . . . . . . . . . Intercept . | . . . . . . . . . . . . . . . . . . Searches Triggered 1 | . . . . . . . . . . . . . . . 1 . . Construction Impeded . | . . . . . . . . . . . . . . . . . . Haulers Reinforced . | . . . . . . . . . . . . . . . . . . Active Scanning Responses . | . . . . . . . . . . . . . . . . . . Cargo Convoy Interrupts . | . . . . . . . . . . . . . . . . . . Stealth | -11 -10 -10 -9 -9 -9 -7 -6 -5 -5 -4 -4 -4 -4 -3 -3 -2 -1 --------- Run | Jun Mat Min Mat Sto Rec Fac Fac Fac DSF Fac Upp Upp War Pro Res Res Acc Distress Signals 15 | . 1 . . 1 . 1 . . . . . . . 2 4 5 1 Communications Jammed . | . . . . . . . . . . . . . . . . . . Distress Signals . | . . . . . . . . . . . . . . . . . . Times Spotted 247 | . 7 8 3 30 6 24 23 . 3 19 . 26 20 11 32 21 14 Peak Tracking Total 11 | . 4 3 2 5 4 5 7 . 2 8 . 11 7 3 11 8 11 Tactical Retreats 26 | . . 3 . . . 2 1 . 1 2 . 6 . . 5 2 4 Traps | -11 -10 -10 -9 -9 -9 -7 -6 -5 -5 -4 -4 -4 -4 -3 -3 -2 -1 ------- Run | Jun Mat Min Mat Sto Rec Fac Fac Fac DSF Fac Upp Upp War Pro Res Res Acc Traps Triggered 4 | . . . . 1 . 1 1 . . . . . . . 1 . . Indirectly . | . . . . . . . . . . . . . . . . . . Trap Hack Attempts . | . . . . . . . . . . . . . . . . . . Triggered . | . . . . . . . . . . . . . . . . . . Disarmed . | . . . . . . . . . . . . . . . . . . Reprogrammed . | . . . . . . . . . . . . . . . . . . Reused . | . . . . . . . . . . . . . . . . . . Traps Extracted . | . . . . . . . . . . . . . . . . . . Installed . | . . . . . . . . . . . . . . . . . . Triggered 12 | . . . . . . . . . . . . 3 9 . . . . Machines | -11 -10 -10 -9 -9 -9 -7 -6 -5 -5 -4 -4 -4 -4 -3 -3 -2 -1 ---------- Run | Jun Mat Min Mat Sto Rec Fac Fac Fac DSF Fac Upp Upp War Pro Res Res Acc Machines Disabled 14 | . . . . 6 . . 3 . . 1 1 . 1 . 1 1 . Max in Single Turn 2 | . . . . 2 . . 2 . . 1 1 . 1 . 1 1 . Garrison Access 1 | . . . . . . . . . . . . . . . . 1 . Machines Repaired . | . . . . . . . . . . . . . . . . . . Machines Sabotaged . | . . . . . . . . . . . . . . . . . . Overloaded Fab Kills . | . . . . . . . . . . . . . . . . . . Hacking | -11 -10 -10 -9 -9 -9 -7 -6 -5 -5 -4 -4 -4 -4 -3 -3 -2 -1 --------- Run | Jun Mat Min Mat Sto Rec Fac Fac Fac DSF Fac Upp Upp War Pro Res Res Acc Machines Accessed 51 | . . 2 5 12 11 6 4 1 . 3 3 . 1 1 1 . 1 Terminals 31 | . . 1 5 11 5 2 1 1 . 3 . . . 1 . . 1 Fabricators 2 | . . . . . . 1 1 . . . . . . . . . . Repair Stations 1 | . . . . 1 . . . . . . . . . . . . . Recycling Units 11 | . . . . . 6 2 2 . . . . . . . 1 . . Scanalyzers . | . . . . . . . . . . . . . . . . . . Garrison Access 1 | . . . . . . 1 . . . . . . . . . . . Total Hacks 126 | . . 4 15 30 28 12 6 2 . 12 8 . 1 3 2 . 3 Successful 64 | . . 3 8 12 18 2 2 1 . 4 8 . 1 3 . . 2 Failed 62 | . . 1 7 18 10 10 4 1 . 8 . . . . 2 . 1 Catastrophic 9 | . . . . 3 1 . 3 . . 1 . . . . 1 . . Database Lockouts . | . . . . . . . . . . . . . . . . . . Manual 26 | . . 2 2 10 10 . . . . 2 . . . . . . . Terminals 91 | . . 3 15 27 19 6 1 2 . 12 . . . 3 . . 3 Fabricators 3 | . . . . . . 2 1 . . . . . . . . . . Repair Stations 3 | . . . . 3 . . . . . . . . . . . . . Recycling Units 17 | . . . . . 9 2 4 . . . . . . . 2 . . Scanalyzers . | . . . . . . . . . . . . . . . . . . Garrison Access 2 | . . . . . . 2 . . . . . . . . . . . Terminal Hacks 48 | . . 3 8 8 9 1 . 1 . 4 8 . 1 3 . . 2 Record 13 | . . . 2 . . 1 . . . . 6 . . 3 . . 1 Prototype ID Bank 4 | . . . 1 . 2 . . . . 1 . . . . . . . Open Door 8 | . . 1 . 4 . . . . . . 2 . 1 . . . . Open DSF 1 | . . . . . . . . 1 . . . . . . . . . Level Access Points 1 | . . . . . . . . . . . . . . . . . 1 Branch Access Points 2 | . . . 1 . . . . . . 1 . . . . . . . Emergency Access Points 1 | . . . . . . . . . . 1 . . . . . . . Alert Level 7 | . . 1 2 2 2 . . . . . . . . . . . . Unreport Threat 2 | . . . 1 1 . . . . . . . . . . . . . Locate Traps 3 | . . . . 1 1 . . . . 1 . . . . . . . Hauler Manifests 1 | . . . . . 1 . . . . . . . . . . . . Zone Layout 5 | . . 1 1 . 3 . . . . . . . . . . . . Fabricator Hacks 1 | . . . . . . . 1 . . . . . . . . . . Network Status 1 | . . . . . . . 1 . . . . . . . . . . Repair Station Hacks 2 | . . . . 2 . . . . . . . . . . . . . Scan Component 2 | . . . . 2 . . . . . . . . . . . . . Recycling Unit Hacks 8 | . . . . . 6 1 1 . . . . . . . . . . Report Inventory 1 | . . . . . 1 . . . . . . . . . . . . Retrieve Components 7 | . . . . . 5 1 1 . . . . . . . . . . Scanalyzer . | . . . . . . . . . . . . . . . . . . Garrison Access Hacks . | . . . . . . . . . . . . . . . . . . Unauthorized Hacks 5 | . . . . 2 3 . . . . . . . . . . . . Terminals 5 | . . . . 2 3 . . . . . . . . . . . . Track 1 | . . . . 1 . . . . . . . . . . . . . Botnet 2 | . . . . . 2 . . . . . . . . . . . . Operators 2 | . . . . 1 1 . . . . . . . . . . . . Fabricators . | . . . . . . . . . . . . . . . . . . Repair Stations . | . . . . . . . . . . . . . . . . . . Recycling Units . | . . . . . . . . . . . . . . . . . . Scanalyzers . | . . . . . . . . . . . . . . . . . . Garrison Access . | . . . . . . . . . . . . . . . . . . Data Cores Recovered 2 | . . . 1 . . . . . . 1 . . . . . . . Used 1 | . . . . . . . . . . 1 . . . . . . . Hacking Detections 38 | . . 1 3 11 7 5 4 1 . 3 . . . 1 1 . 1 Full Trace Events 1 | . . . . . . . . . . 1 . . . . . . . Feedback Events . | . . . . . . . . . . . . . . . . . . Feedback Blocked . | . . . . . . . . . . . . . . . . . . Robot Schematics Acquired . | . . . . . . . . . . . . . . . . . . Robots Built . | . . . . . . . . . . . . . . . . . . Authchips . | . . . . . . . . . . . . . . . . . . Time . | . . . . . . . . . . . . . . . . . . Total Robot Build Rating . | . . . . . . . . . . . . . . . . . . Part Schematics Acquired . | . . . . . . . . . . . . . . . . . . Parts Built . | . . . . . . . . . . . . . . . . . . Authchips . | . . . . . . . . . . . . . . . . . . Time . | . . . . . . . . . . . . . . . . . . Total Part Build Rating . | . . . . . . . . . . . . . . . . . . Parts Repaired . | . . . . . . . . . . . . . . . . . . Time . | . . . . . . . . . . . . . . . . . . Parts Recycled . | . . . . . . . . . . . . . . . . . . Recycled Matter . | . . . . . . . . . . . . . . . . . . Retrieved Matter . | . . . . . . . . . . . . . . . . . . Retrieved Components 14 | . . . . . 10 3 1 . . . . . . . . . . Parts Scanalyzed . | . . . . . . . . . . . . . . . . . . Part Schematics Acquired . | . . . . . . . . . . . . . . . . . . Parts Damaged . | . . . . . . . . . . . . . . . . . . Bothacking | -11 -10 -10 -9 -9 -9 -7 -6 -5 -5 -4 -4 -4 -4 -3 -3 -2 -1 ------------ Run | Jun Mat Min Mat Sto Rec Fac Fac Fac DSF Fac Upp Upp War Pro Res Res Acc Used RIF Installer . | . . . . . . . . . . . . . . . . . . Robots Hacked . | . . . . . . . . . . . . . . . . . . Non-combat . | . . . . . . . . . . . . . . . . . . Combat . | . . . . . . . . . . . . . . . . . . Robot Hacks Applied . | . . . . . . . . . . . . . . . . . . Relay Couplers Released 1 | . . . . . . . . . . . . . . . . 1 . Machine Destruction 1 | . . . . . . . . . . . . . . . . 1 . Fabnet Peak Effective % . | . . . . . . . . . . . . . . . . . . Robots Rewired . | . . . . . . . . . . . . . . . . . . Allies Hacked . | . . . . . . . . . . . . . . . . . . Hacks Repelled . | . . . . . . . . . . . . . . . . . . Allies | -11 -10 -10 -9 -9 -9 -7 -6 -5 -5 -4 -4 -4 -4 -3 -3 -2 -1 -------- Run | Jun Mat Min Mat Sto Rec Fac Fac Fac DSF Fac Upp Upp War Pro Res Res Acc Total Allies 13 | . . 3 . 10 . . . . . . . . . . . . . Largest Group 9 | . . 3 3 9 7 . . . . . . . . . . . . Highest-Rated Group 148 | . . 40 40 148 148 . . . . . . . . . . . . Highest-Rated Ally 100 | . . 16 16 100 100 . . . . . . . . . . . . Total Orders . | . . . . . . . . . . . . . . . . . . Ally Attacks 62 | . . 7 16 25 14 . . . . . . . . . . . . Total Damage 664 | . . 25 195 320 124 . . . . . . . . . . . . Kills 13 | . . 2 4 6 1 . . . . . . . . . . . . Allies Corrupted 3 | . . . . . 3 . . . . . . . . . . . . Allies Melted 1 | . . . . . . . . . . . . . 1 . . . . Intel | -11 -10 -10 -9 -9 -9 -7 -6 -5 -5 -4 -4 -4 -4 -3 -3 -2 -1 ------- Run | Jun Mat Min Mat Sto Rec Fac Fac Fac DSF Fac Upp Upp War Pro Res Res Acc Robot Analysis Total . | . . . . . . . . . . . . . . . . . . Derelict Logs Recovered 3 | . . 1 . . . . . . . . . 2 . . . . . Drone Launches . | . . . . . . . . . . . . . . . . . . Drone Recoveries . | . . . . . . . . . . . . . . . . . . Exploration | -11 -10 -10 -9 -9 -9 -7 -6 -5 -5 -4 -4 -4 -4 -3 -3 -2 -1 ------------- Run | Jun Mat Min Mat Sto Rec Fac Fac Fac DSF Fac Upp Upp War Pro Res Res Acc Turns Passed 13234 | 58 111 1073 240 1340 1930 1465 902 3 242 320 1049 969 473 1090 419 489 1061 Spaces Moved 10904 | 37 86 722 192 892 1316 925 622 4 70 304 1476 1005 562 901 480 672 638 Core 18 | 17 . . . . 1 . . . . . . . . . . . . Treads 1535 | . . . . 4 673 160 43 . . . 379 . . 12 . . 264 Legs 2720 | 20 86 722 192 128 194 204 205 . . . 708 . . 261 . . . Wheels 3312 | . . . . 760 387 370 . . 66 304 54 685 562 69 . . 55 Hover 1799 | . . . . . 34 97 180 4 4 . 335 320 . 534 . . 291 Flight 1520 | . . . . . 27 94 194 . . . . . . 25 480 672 28 Fastest Speed 36 | 50 120 120 120 90 73 68 68 97 49 49 36 66 66 61 61 61 48 Average Speed 82 | 122 120 120 120 114 106 116 106 97 51 49 46 66 66 67 61 61 55 Slowest Speed 500 | 200 120 120 120 240 500 166 143 97 97 49 128 66 66 79 61 61 61 Overloaded Moves . | . . . . . . . . . . . . . . . . . . Propulsion Burnouts . | . . . . . . . . . . . . . . . . . . Robots Hopped 9 | . . . . . . . . . . . . . . . 3 6 . Cave-ins Triggered 7 | . . . . . . . . . . . . . . . . . 7 Exploration Rate (%) 49 | 3 19 100 21 96 99 24 16 . 47 7 98 95 68 93 25 18 15 Regions Visited 17 Branch Regions 7 Pre-discovered Areas 1 | . . 1 . . . . . . . . . . . . . . . Known Exits Taken 3 | . . . 1 . . . . 1 . 1 . . . . . . . Unknown Exits Taken 13 | 1 1 1 . 1 1 1 1 . . . 1 1 1 1 1 1 . Scrap Searched 10 | . . 1 . . . . . . . . 3 3 . 3 . . . Spaces Dug 25 | . . . . . . . . . . . . . . . . . 25 Terrain Destroyed 125 | . . . . 20 1 . 8 . . 2 1 18 3 36 8 3 25 Melee 6 | . . . . . . . . . . . . . . . . . 6 Projectile 80 | . . . . . 1 . 8 . . 2 1 18 3 36 8 3 . AOE 39 | . . . . 20 . . . . . . . . . . . . 19 Terrain Rammed 28 | . . . . . . . . . . . . . . . . . 28 Walls Destroyed . | . . . . . . . . . . . . . . . . . . Machines Disabled . | . . . . . . . . . . . . . . . . . . Actions | -11 -10 -10 -9 -9 -9 -7 -6 -5 -5 -4 -4 -4 -4 -3 -3 -2 -1 --------- Run | Jun Mat Min Mat Sto Rec Fac Fac Fac DSF Fac Upp Upp War Pro Res Res Acc Total 14110 | 46 93 886 200 1123 1661 1167 732 3 271 438 1777 1216 634 1263 567 711 1322 Wait 2361 | . 4 100 2 82 214 164 16 . 200 110 257 142 57 292 64 30 627 Move 10870 | 36 85 721 191 891 1315 924 621 3 69 303 1475 1004 561 900 473 661 637 Hop 7 | . . . . . . . . . . . . . . . 3 4 . Pick Up 38 | 4 3 6 1 16 4 2 . . . . 2 . . . . . . Fast Attach 27 | 6 1 1 1 14 1 1 1 . . . 1 . . . . . . Attach 21 | . . 3 1 6 1 . 1 . . . 1 . . . . . 8 Detach 5 | . . 1 1 2 . . . . . . . . 1 . . . . Swap 6 | . . 1 . 5 . . . . . . . . . . . . . Drop 53 | . . 7 1 23 15 . 1 . . . 1 . . . . . 5 Fire 568 | . . 46 2 75 87 76 92 . 2 24 6 21 15 71 27 16 8 Melee 123 | . . . . 9 22 . . . . . 34 49 . . . . 9 Ram 28 | . . . . . . . . . . 1 . . . . . . 27 Kick . | . . . . . . . . . . . . . . . . . . Crush . | . . . . . . . . . . . . . . . . . . Escape Stasis 1 | . . . . . . . . . . . . . . . . . 1 Rewire 2 | . . . . . 2 . . . . . . . . . . . . Trap . | . . . . . . . . . . . . . . . . . . Miscellaneous . | . . . . . . . . . . . . . . . . . . Route ------- -11/Junkyard -10/Materials -10/Mines (discovered 2 exits: *Mat x2) -9/Materials (discovered 4 exits: [*Mat] / Min x2 / *Sto) -9/Storage (discovered 2 exits: [*Mat] / *Rec) -9/Recycling -7/Factory -6/Factory -5/Factory -5/DSF -4/Factory (discovered 3 exits: *Upp x2 / Arm) -4/Upper Caves -4/Upper Caves (discovered 2 exits: *Res / *War) -4/Warlord -3/Proximity Caves -3/Research -2/Research -1/Access (discovered 1 exit: Sur) History --------- Turn | Location | Event 6 | -11/Junkyard | Discovered new exit (range 16) 59 | -11/Junkyard | Entered Materials 146 | -10/Materials | Discovered new exit (range 6) 170 | -10/Materials | Entered Mines 171 | -10/Mines | Assembled infested the area 176 | -10/Mines | Assisted by a Guerilla fighting off Assembled 177 | -10/Mines | Received a Rocket Launcher from a helpful Derelict 315 | -10/Mines | Build established: Mutant 431 | -10/Mines | Discovered new exit (range 7) 454 | -10/Mines | Met a Derelict who couldn't figure out how to use a Trap Extractor 619 | -10/Mines | Learned Materials emergency access door positions 733 | -10/Mines | Learned location of Storage (-9) 782 | -10/Mines | Assisted by bots powering up and referring to "LRC-V3" 803 | -10/Mines | Found a damaged Exp. Sensor Array with a note attached 806 | -10/Mines | Found Prototype Device 916 | -10/Mines | Discovered new exit (range 5) 1243 | -10/Mines | Entered Materials 1243 | -9/Materials | Accompanied by 3 allies 1243 | -9/Materials | Evolved 2 slots: Propulsion x1, Utility x1 1396 | -9/Materials | Discovered new exit (range 8) 1454 | -9/Materials | Discovered new exit (range 9) 1475 | -9/Materials | Identified exit to Mines 1475 | -9/Materials | Identified exit to Storage 1483 | -9/Materials | Entered Storage 1483 | -9/Storage | Accompanied by 2 allies 2201 | -9/Storage | Assisted by bots powering up and referring to "LRC-V3" 2441 | -9/Storage | Discovered new exit (range 16) 2446 | -9/Storage | Met 01-MTF 2493 | -9/Storage | Build established: Commander-Mutant 2551 | -9/Storage | Discovered new exit (range 5) 2823 | -9/Storage | Entered Recycling 2823 | -9/Recycling | Accompanied by 7 allies (01-MTF) 2828 | -9/Recycling | 01-MTF left 2837 | -9/Recycling | Found Scrap Engine 3035 | -9/Recycling | Discovered new exit (range 8) 3518 | -9/Recycling | Build established: Mutant 3841 | -9/Recycling | Build established: Construct 4753 | -9/Recycling | Entered Factory 4753 | -7/Factory | Evolved 4 slots: Power x1, Propulsion x2, Utility x1 5861 | -7/Factory | Core integrity fell below 50% 6181 | -7/Factory | Discovered new exit (range 4) 6218 | -7/Factory | Entered another Factory area 6218 | -6/Factory | Evolved 2 slots: Power x1, Weapon x1 6434 | -6/Factory | Garrison activated, responded to threat 6741 | -6/Factory | Spotted B-75 Beast 7085 | -6/Factory | Discovered new exit (range 15) 7120 | -6/Factory | Entered another Factory area 7120 | -5/Factory | Evolved 2 slots: Propulsion x1, Weapon x1 7122 | -5/Factory | Identified exit to DSF 7123 | -5/Factory | Entered DSF 7332 | -5/DSF | Discovered new exit (range 12) 7352 | -5/DSF | Additional patrols routed to DSF 7365 | -5/DSF | Entered Factory 7365 | -4/Factory | Evolved 2 slots: Propulsion x2 7581 | -4/Factory | Identified exit to Upper Caves 7581 | -4/Factory | Identified exit to Armory 7638 | -4/Factory | Destroyed 7 combat bots 7684 | -4/Factory | Lost 3 parts (1p2w) 7685 | -4/Factory | Entered Upper Caves 7786 | -4/Upper Caves | Learned 8 Factory zone layouts 7786 | -4/Upper Caves | Learned Research trap positions 7786 | -4/Upper Caves | Learned Armory trap positions 7786 | -4/Upper Caves | Learned Research security intel 7823 | -4/Upper Caves | Destroyed ME-O77(g) 8176 | -4/Upper Caves | Discovered new exit (range 11) 8734 | -4/Upper Caves | Entered another Upper Caves area 8871 | -4/Upper Caves | Spotted B-86 Titan 8891 | -4/Upper Caves | Discovered new exit (range 4) 8973 | -4/Upper Caves | Destroyed B-86 Titan 9346 | -4/Upper Caves | Discovered new exit (range 11) 9392 | -4/Upper Caves | Attracted the attention of an 0b10 checkpoint 9506 | -4/Upper Caves | Learned location of 1 exit from Upper Caves 9560 | -4/Upper Caves | Learned Research non-interactive machine intel 9606 | -4/Upper Caves | Attracted the attention of an 0b10 base 9703 | -4/Upper Caves | Entered Warlord 9738 | -4/Warlord | System corruption cleaned by Quarantine Array 9781 | -4/Warlord | Met Warlord 9806 | -4/Warlord | Warlord's base attacked by MAIN.C 10135 | -4/Warlord | Warlord forces counterattacked 10168 | -4/Warlord | Discovered new exit (range 15) 10176 | -4/Warlord | Entered Proximity Caves 10256 | -3/Proximity Caves | Spotter reported a threat 10528 | -3/Proximity Caves | Spotter reported a threat 10559 | -3/Proximity Caves | Spotted B-86 Titan 10560 | -3/Proximity Caves | Spotter reported a threat 10609 | -3/Proximity Caves | Destroyed B-86 Titan 10647 | -3/Proximity Caves | Ambushed by research squad 10683 | -3/Proximity Caves | Core integrity fell below 50% 10745 | -3/Proximity Caves | Spotter reported a threat 11003 | -3/Proximity Caves | Spotter reported a threat 11142 | -3/Proximity Caves | Discovered new exit (range 14) 11266 | -3/Proximity Caves | Entered Research 11266 | -3/Research | Evolved 2 slots: Power x1, Utility x1 11267 | -3/Research | Loaded intel: 98 trap records 11269 | -3/Research | Loaded intel: 39 non-interactive machine locations 11465 | -3/Research | Spotted B-86 Titan 11557 | -3/Research | Build established: Generator-Construct 11563 | -3/Research | Search patrols dispatched 11657 | -3/Research | Spotted B-86 Titan 11676 | -3/Research | Discovered new exit (range 16) 11678 | -3/Research | System corruption reached 10% 11685 | -3/Research | Entered another Research area 11685 | -2/Research | Warlord forces began assault on 0b10 11685 | -2/Research | Evolved 2 slots: Power x1, Weapon x1 11795 | -2/Research | Research machine network offline 11937 | -2/Research | Build established: Construct 11944 | -2/Research | Spotted Striker 11944 | -2/Research | Spotted Executioner 12128 | -2/Research | Discovered new exit (range 11) 12144 | -2/Research | Met up with Warlord 12174 | -2/Research | Entered Access 12174 | -1/Access | Evolved 2 slots: Propulsion x2 12252 | -1/Access | Identified exit to Surface 12385 | -1/Access | Identified Exp. Sensor Array 12604 | -1/Access | Lost 3 parts (2u1w) 12681 | -1/Access | System corruption reached 10% 12703 | -1/Access | Crushed by falling debris 12716 | -1/Access | Crushed by falling debris 12747 | -1/Access | Lost 7 parts (3p1n2u1w) 12767 | -1/Access | Crushed by falling debris 12803 | -1/Access | Crushed by falling debris 12806 | -1/Access | Crushed by falling debris 12998 | -1/Access | Build established: Mutant 13046 | -1/Access | Crushed by falling debris 13056 | -1/Access | Crushed by falling debris 13209 | -1/Access | System corruption reached 30% 13213 | -1/Access | Core integrity fell below 50% 13226 | -1/Access | Core integrity fell below 20% 13235 | -1/Access | Core destroyed Last Messages --------------- 13225_ Destabilizing: Core damaged (-16). 13225_ Destabilizing: System corrupted (+1). 13226_ Slammed into Earth. 13227_ Destabilizing: Core damaged (-64). 13228_ Slammed into Earth. 13228_ Destabilizing: Core damaged (-80). 13229_ Slammed into Earth. 13230_ Destabilizing: System corrupted (+2). [Achievement: Z1$+NX3F=JRE3_ZNQR] 13231_ Slammed into Earth. 13231_ Destabilizing: System corrupted (+2). 13232_ Slammed into Earth. 13232_ Destabilizing: System corrupted (+1). 13233_ Slammed into Earth. 13233_ Destabilizing: Core damaged (-80). 13234_ 5GP6W RL#O=NU JU,GXG==B 13234_ Slammed into Earth. 13234_ Destabilizing: System corrupted (+1). 13235_ Slammed into Earth. 13235_ Destabilizing: Core damaged (-32). Map ----- +----------------------------------------------------+ | ??????????????????# # #?????????? | | ??????????????????# # +?????????? | | ??????????????????# # #?????????? | | ??????????????????# # #?????????? | | ??????????????????# # #?????????? | | ??????????????????# # #?????????? | | ??????????????????# ] # #?????????? | | ??????????????????# # #?????????? | | ??????????????????# / #?????????? | | ??????????????????# # #?????????? | | ??????????????????# # #?????????? | | ??????????????????############## #?????????? | | ?????????????????????????????######/##/####??????? | | ?????????????????????????????# #??????? | | ?????????????????????????????# #??????? | | ?????????????????????????????#!!! #??????? | | ?????????????????????????????#!! #??????? | | ?????????????????????????????#!! ] #??????? | | ?????????????????????????????# #??????? | | ?????????????????????????????# #??????? | | ???????????????????????????### """"" #??????? | | ???????????????????????????# """"" #??????? | | ???????????????????????????# """"" #??????? | | ???????????????????????????# """""? #??????? | | ???????????????????????###### """""? #??????? | | ?????????????????????####@## ######?????????? | | ?????????????????????###### # #??????????????? | | ?????????????????????####?#########??????????????? | | ?????????????????????????????????????????????????? | | ?????????????????????????????????????????????????? | | ?????????????????????????????????????????????????? | | ?????????????????????????????????????????????????? | | ?????????????????????????????????????????????????? | | ??????????????????????????????